bitfinex/quotes_ETHUSD_20241003
["timestamp","ask_amount","ask_price","bid_price","bid_amount"]
[1727941567216,3.36859,2374.9,2374.5,1.5681]
[1727941567754,3.36828,2375.1,2374.6,3.36891]
[1727941568152,6.73664,2375.1,2374.6,3.36891]
[1727941568351,3.36828,2375.1,2374.5,2.34112111]
[1727941568659,6.36841,2375.1,2374.6,3.36896]
[1727941569473,3.36842,2375.0,2374.6,3.36896]
[1727941569770,3.0,2375.1,2374.8,3.36863]
[1727941569918,3.83412912,2375.6,2374.9,2.7929411]
[1727941569919,3.36767,2375.6,2374.9,2.7929411]
[1727941570119,5.09724209,2375.8,2375.3,2.7929411]
[1727941570372,8.46406209,2376.0,2375.4,4.96904]
[1727941570540,3.36706,2376.0,2375.4,4.96897]
[1727941570742,3.36706,2376.0,2375.5,6.1606511]
[1727941570931,1.72988209,2376.2,2375.8,3.36726]
[1727941571131,1.72988209,2376.3,2375.8,3.36721]
[1727941571453,3.36674,2376.2,2376.0,1.5507]
[1727941571625,3.24108209,2376.3,2375.6,1.5507]
[1727941571826,3.36721,2375.9,2375.6,1.5507]
[1727941572031,3.36713,2376.0,2375.6,1.5507]
[1727941572268,6.73424,2376.0,2375.6,1.5507]
[1727941572426,3.36706,2376.0,2375.6,1.5507]
[1727941573049,5.09654209,2376.3,2375.6,8.81911721]
[1727941573275,3.36686,2376.1,2375.6,6.02617611]
[1727941573648,3.36684,2376.2,2375.7,3.36742]
[1727941574072,3.36686,2376.1,2375.6,6.02617611]
[1727941574760,3.36713,2376.0,2375.6,1.5507]
[1727941575348,3.36715,2375.9,2375.6,1.5507]
[1727941575588,3.36713,2376.0,2375.6,1.5507]
[1727941576698,5.09649209,2376.3,2375.6,1.5507]
[1727941576699,8.46352209,2376.2,2375.6,1.5507]
[1727941576891,6.36688,2376.1,2375.6,4.91826]
[1727941577050,1.72988209,2376.3,2375.8,3.36727]
[1727941577294,4.64950708,2376.4,2375.9,4.90463]
[1727941577480,4.64950708,2376.4,2375.9,1.5375]
[1727941577664,6.28614499,2376.4,2375.9,1.5375]
[1727941577866,2.91962499,2376.4,2376.0,0.490477]
[1727941578498,6.28619499,2376.4,2376.0,0.490477]
[1727941578853,3.36665,2376.3,2376.0,0.490477]
[1727941579155,2.91962499,2376.4,2376.0,0.490477]
[1727941580499,2.91962499,2376.4,2376.1,0.52029325]
[1727941582169,6.36624,2376.6,2376.2,1.6264]
[1727941582499,9.73247,2376.6,2376.2,1.6264]
[1727941583190,3.36632,2376.5,2376.2,1.6264]
[1727941583399,3.36647,2376.4,2376.2,1.6264]
[1727941583558,3.36632,2376.5,2376.2,1.89011703]
[1727941584302,3.36611,2376.7,2376.2,1.89011703]
[1727941584470,6.73225,2376.7,2376.2,5.25673703]
[1727941584812,3.36616,2376.6,2376.2,1.89011703]
[1727941584962,3.36611,2376.7,2376.2,1.89011703]
[1727941585162,6.73225,2376.7,2376.3,0.24104103]
[1727941585456,3.36618,2376.6,2376.3,0.24104103]
[1727941585657,3.0,2376.9,2376.5,1.6108]
[1727941585658,3.36576,2376.9,2376.5,1.6108]
[1727941585860,3.36574,2376.9,2376.6,0.44037411]
[1727941586167,6.7316,2376.9,2376.6,0.44037411]
[1727941587274,3.36574,2376.9,2376.6,0.44037411]
[1727941587998,3.36559,2377.0,2376.6,0.44037411]
[1727941588159,2.20813982,2377.4,2376.6,0.44037411]
[1727941588160,3.36525,2377.3,2376.8,4.4278411]
[1727941588374,3.3654,2377.2,2376.8,4.4278411]
[1727941588693,3.3654,2377.2,2376.8,1.6349]
[1727941588870,3.3654,2377.2,2376.9,0.21766464]
[1727941590075,6.36497,2377.5,2376.9,0.21766464]
[1727941590321,3.36509,2377.4,2376.9,3.58330464]
[1727941590518,3.36517,2377.3,2377.0,1.6101]
[1727941590688,3.36517,2377.3,2377.0,2.40875657]
[1727941591014,6.7304,2377.3,2377.0,2.40875657]
[1727941591218,9.72999,2377.5,2377.0,2.40875657]
[1727941591417,3.36498,2377.5,2377.0,2.40875657]
[1727941591587,3.36488,2377.5,2377.2,1.6101]
[1727941593330,3.36544,2377.1,2376.6,1.6101]
[1727941593531,3.36545,2377.1,2376.6,2.107744]
[1727941593828,3.36545,2377.1,2376.6,1.6101]
[1727941594320,3.36545,2377.1,2376.6,4.97615]
[1727941594535,3.0,2377.2,2376.7,6.73184]
[1727941594708,3.0,2377.2,2376.8,2.49767811]
[1727941594919,3.36525,2377.3,2376.8,5.86353811]
[1727941595429,6.73048,2377.3,2376.8,2.49767811]
[1727941595654,3.36531,2377.2,2376.8,2.49767811]
[1727941595927,3.36523,2377.3,2376.9,0.58635881]
[1727941596220,6.7305,2377.3,2376.9,0.58635881]
[1727941596424,6.73048,2377.3,2376.9,0.58635881]
[1727941596621,3.36523,2377.3,2376.9,0.58635881]
[1727941596821,3.0,2377.4,2376.9,0.58635881]
[1727941597029,3.36518,2377.3,2377.0,0.82903599]
[1727941597400,3.36518,2377.3,2377.1,1.5932]
[1727941598192,3.36496,2377.5,2377.1,1.5932]
[1727941598392,3.36503,2377.4,2377.1,1.5932]
[1727941598705,3.36516,2377.3,2377.1,1.5932]
[1727941600453,3.3653,2377.2,2377.1,1.5932]
[1727941600607,3.3653,2377.2,2376.9,1.5451]
[1727941600608,3.36547,2377.1,2376.9,1.5451]
[1727941601203,6.73072,2377.2,2376.9,1.5451]
[1727941601428,3.3653,2377.2,2376.9,1.5451]
[1727941601633,6.73068,2377.2,2376.9,1.5451]
[1727941601936,3.3653,2377.2,2376.9,1.5451]
[1727941602724,3.36547,2377.1,2376.9,1.5451]
[1727941602932,3.36547,2377.1,2376.7,1.844201]
[1727941603184,3.36565,2377.0,2376.7,1.844201]
[1727941603317,3.36565,2377.0,2376.7,1.5076]
[1727941604008,3.36551,2377.1,2376.7,1.5076]
[1727941604434,3.36536,2377.2,2376.7,1.5076]
[1727941604643,3.36511,2377.4,2376.8,0.487371]
[1727941604822,1.6395,2377.5,2377.0,6.1584911]
[1727941604823,3.36488,2377.5,2377.0,6.1584911]
[1727941605039,3.36503,2377.4,2377.1,1.11584911]
[1727941605230,3.36503,2377.4,2376.9,8.36566]
[1727941605552,3.36495,2377.5,2377.2,1.5054]
[1727941606150,3.36481,2377.6,2377.2,1.5054]
[1727941606319,3.36516,2377.3,2377.0,1.5054]
[1727941607218,3.36502,2377.4,2377.0,1.5054]
[1727941607444,3.36502,2377.4,2377.0,2.41063022]
[1727941607445,3.36516,2377.3,2377.0,2.41063022]
[1727941607652,3.36502,2377.4,2377.0,2.41063022]
[1727941608317,3.36488,2377.5,2377.0,5.77619022]
[1727941608744,3.36482,2377.6,2377.0,5.77619022]
[1727941608947,3.36482,2377.6,2377.1,3.36542]
[1727941609253,3.36482,2377.6,2377.3,1.583]
[1727941609838,3.0,2377.7,2377.3,1.583]
[1727941610047,3.36455,2377.8,2377.3,4.94806]
[1727941610350,3.36455,2377.8,2377.4,0.5862221]
[1727941610505,3.3646,2377.7,2377.3,1.583]
[1727941616989,6.72912,2377.8,2377.3,4.94815]
[1727941617477,3.3646,2377.7,2377.3,4.94815]
[1727941617777,3.3646,2377.7,2377.4,0.5862311]
[1727941617987,3.0,2378.1,2377.4,0.5862311]
[1727941618146,1.5608,2378.2,2377.4,0.5862311]
[1727941618147,3.36451,2377.8,2377.4,0.5862311]
[1727941618478,3.36451,2377.8,2377.5,0.55343811]
[1727941618683,6.72908,2377.8,2377.5,0.55343811]
[1727941619189,3.36468,2377.7,2377.5,0.55343811]
[1727941619482,3.36468,2377.7,2377.4,0.5862311]
[1727941619666,3.36468,2377.7,2377.3,1.583]
[1727941620942,3.36476,2377.6,2377.3,1.583]
[1727941621184,3.0,2377.7,2377.0,1.6079]
[1727941621365,3.36511,2377.4,2377.0,1.6079]
[1727941621656,3.36511,2377.4,2377.0,2.105273]
[1727941621657,3.36517,2377.3,2377.0,2.105273]
[1727941622255,3.36511,2377.4,2377.0,2.105273]
[1727941622256,3.36531,2377.2,2377.0,2.105273]
[1727941622595,3.36531,2377.2,2377.0,1.6079]
[1727941623500,6.73072,2377.2,2377.0,1.6079]
[1727941623891,3.36531,2377.2,2377.0,1.6079]
[1727941624200,3.36544,2377.1,2377.0,1.6079]
[1727941624757,6.73075,2377.2,2377.0,1.6079]
[1727941624984,3.36544,2377.1,2376.7,1.5262]
[1727941625195,3.36544,2377.1,2376.8,0.489235]
[1727941625381,3.36544,2377.1,2376.3,3.0]
[1727941625382,3.36586,2376.9,2376.4,1.5262]
[1727941625584,3.36616,2376.6,2376.4,1.5262]
[1727941626457,3.36573,2376.9,2376.4,4.8926]
[1727941626653,3.0,2376.8,2376.5,0.48926]
[1727941626891,6.36573,2376.9,2376.5,0.48926]
[1727941627676,3.36541,2377.2,2376.7,4.93561]
[1727941627884,3.36541,2377.2,2376.8,0.77285511]
[1727941628397,3.36516,2377.3,2376.8,4.13870511]
[1727941628608,1.72988209,2377.5,2377.1,1.5697]
[1727941628774,8.90282821,2377.6,2377.1,1.5697]
[1727941628775,5.09470209,2377.6,2377.2,0.77281511]
[1727941629268,3.36482,2377.6,2377.2,0.77281511]
[1727941629484,1.72988209,2377.7,2377.2,0.77281511]
[1727941629688,5.09441209,2377.8,2377.3,4.88462]
[1727941629983,8.45831209,2378.0,2377.5,1.5195]
[1727941630311,3.36433,2377.9,2377.6,0.488443]
[1727941630677,5.09421209,2377.9,2377.6,0.488443]
[1727941631018,3.36446,2377.8,2377.6,0.488443]
[1727941631320,3.36446,2377.8,2377.5,1.5195]
[1727941632311,6.72899,2377.8,2377.5,1.5195]
[1727941632482,3.36446,2377.8,2377.5,1.5195]
[1727941633113,6.72899,2377.8,2377.5,1.5195]
[1727941633309,3.36446,2377.8,2377.5,1.5195]
[1727941633711,3.36467,2377.7,2377.5,1.5195]
[1727941634516,3.36446,2377.8,2377.5,1.5195]
[1727941634673,6.72898,2377.8,2377.5,1.5195]
[1727941635115,6.72898,2377.8,2377.2,1.5629]
[1727941635116,3.36516,2377.3,2377.2,1.5629]
[1727941635414,3.36558,2377.1,2376.7,1.5629]
[1727941635573,3.36558,2377.1,2376.7,1.97931095]
[1727941636015,3.36521,2377.3,2376.5,2.05216]
[1727941636324,3.36595,2376.8,2376.5,1.5629]
[1727941637135,3.36572,2376.9,2376.5,1.5629]
[1727941637339,3.36567,2377.0,2376.5,1.5629]
[1727941637523,6.73134,2377.0,2376.6,0.77221911]
[1727941637838,1.72988209,2377.2,2376.6,0.77221911]
[1727941637839,6.73078,2377.2,2376.6,6.93122021]
[1727941638139,6.73078,2377.2,2376.7,6.73192]
[1727941638140,3.36539,2377.2,2376.7,6.73192]
[1727941638437,3.36516,2377.3,2376.8,1.65082811]
[1727941638733,3.36509,2377.4,2376.9,0.83826281]
[1727941638932,3.36509,2377.4,2376.8,4.98486]
[1727941639238,3.36518,2377.3,2376.8,4.98486]
[1727941640535,1.6336,2377.6,2376.8,1.619]
[1727941640695,1.6336,2377.6,2376.5,0.88190835]
[1727941640696,3.36587,2376.8,2376.5,1.619]
[1727941641048,3.36608,2376.7,2376.5,1.619]
[1727941641196,3.36615,2376.6,2376.5,1.619]
[1727941641735,3.36615,2376.6,2376.2,1.522]
[1727941642054,3.36615,2376.6,2376.2,2.47466811]
[1727941642348,3.36636,2376.5,2376.2,2.47466811]
[1727941643047,8.46183209,2376.8,2376.2,2.47466811]
[1727941643336,3.36597,2376.8,2376.3,3.95059881]
[1727941643966,3.36597,2376.8,2376.3,0.58413881]
[1727941644097,3.36597,2376.8,2376.3,0.6386393]
[1727941644098,3.36617,2376.6,2376.3,0.6386393]
[1727941644297,3.36617,2376.6,2376.2,1.522]
[1727941645500,3.36601,2376.7,2376.2,4.8887]
[1727941645801,3.36596,2376.8,2376.2,11.0482311]
[1727941646005,6.7319,2376.8,2376.3,0.03997709]
[1727941646203,3.36594,2376.8,2376.3,4.47531082]
[1727941647342,3.36601,2376.7,2376.3,1.10882082]
[1727941647541,3.36601,2376.7,2376.2,4.88859]
[1727941647743,3.36594,2376.8,2376.2,4.88859]
[1727941648039,3.0,2376.8,2376.3,3.36653]
[1727941648282,6.36597,2376.8,2376.4,0.76814711]
[1727941648801,3.36611,2376.7,2376.2,4.88871]
[1727941649000,3.0,2376.8,2376.3,3.36648]
[1727941649409,3.0,2376.8,2376.4,3.36639]
[1727941649609,6.72899209,2377.1,2376.5,5.591277]
[1727941649610,3.0,2377.0,2376.5,5.591277]
[1727941650053,6.36561,2377.0,2376.5,5.591277]
[1727941650207,3.0,2377.0,2376.5,2.224987]
[1727941650544,3.36573,2376.9,2376.5,2.224987]
[1727941650837,3.0,2377.0,2376.5,2.224987]
[1727941651023,6.36565,2377.0,2376.5,4.91795]
[1727941651223,3.0,2377.0,2376.5,4.91795]
[1727941651426,3.36533,2377.2,2376.6,3.36608]
[1727941651640,3.36525,2377.3,2376.8,3.36584]
[1727941651848,3.90128471,2377.5,2377.0,3.36551]
[1727941652084,2.17140262,2377.6,2377.5,1.5732]
[1727941652285,2.17140262,2377.8,2377.5,1.5732]
[1727941652576,2.17140262,2377.8,2377.5,5.14211524]
[1727941652781,3.36438,2377.9,2377.5,2.34917414]
[1727941652985,1.72988209,2378.1,2377.5,2.34917414]
[1727941653290,1.72988209,2378.1,2377.1,2.7929411]
[1727941653291,3.36473,2377.6,2377.1,1.5684]
[1727941653438,3.36445,2377.8,2377.3,3.36515]
[1727941653646,5.09428209,2377.9,2377.5,1.5684]
[1727941653982,3.3644,2377.9,2377.5,1.5684]
[1727941655061,6.72881,2377.9,2377.5,1.5684]
[1727941655268,3.3644,2377.9,2377.5,1.5684]
[1727941655587,3.3644,2377.9,2377.5,2.1290382]
[1727941655983,6.7288,2377.9,2377.5,2.1290382]
[1727941656182,3.36448,2377.8,2377.5,2.1290382]
[1727941656394,3.36448,2377.8,2377.5,1.5684]
[1727941656693,3.3644,2377.9,2377.5,1.5684]
[1727941658184,3.3644,2377.9,2377.5,4.93326]
[1727941659754,3.0,2378.0,2377.6,3.36469]
[1727941659958,6.36422,2378.0,2377.7,0.493309]
[1727941660803,3.0,2378.0,2377.7,0.493309]
[1727941661100,3.36431,2377.9,2377.5,1.5684]
[1727941662699,3.36476,2377.6,2377.3,1.5672]
[1727941662900,3.36496,2377.5,2377.0,4.93278]
[1727941663201,3.36496,2377.5,2377.0,5.54863811]
[1727941663464,3.36496,2377.5,2377.0,2.18305811]
[1727941664245,3.36496,2377.5,2377.0,5.54863811]
[1727941665153,3.36496,2377.5,2377.0,2.18305811]
[1727941665602,3.36496,2377.5,2377.0,5.54862811]
[1727941666742,4.99813,2377.4,2376.8,4.8969]
[1727941666943,4.99813,2377.4,2376.9,3.36569]
[1727941668833,8.36326,2377.4,2376.9,3.36569]
[1727941669032,4.99813,2377.4,2376.9,3.36569]
[1727941669230,8.36322,2377.4,2376.9,4.191949]
[1727941670523,4.99813,2377.4,2376.9,4.191949]
[1727941671191,8.36323,2377.4,2376.9,0.826259]
[1727941671490,3.36518,2377.3,2376.9,0.826259]
[1727941671858,4.99813,2377.4,2376.9,0.826259]
[1727941672060,8.36325,2377.4,2376.9,0.826259]
[1727941672588,4.99813,2377.4,2376.9,0.826259]
[1727941672789,3.36519,2377.3,2376.9,0.826259]
[1727941673795,1.6331,2377.4,2376.9,0.826259]
[1727941674087,4.99813,2377.4,2376.9,4.191919]
[1727941674296,3.36524,2377.3,2376.9,0.826259]
[1727941674463,3.3656,2377.0,2376.5,1.5662]
[1727941674805,3.36587,2376.8,2376.5,1.5662]
[1727941675123,3.36615,2376.6,2376.3,1.6244]
[1727941675253,3.36631,2376.5,2376.3,1.6244]
[1727941675449,3.36615,2376.6,2376.3,1.6244]
[1727941677396,3.36662,2376.3,2376.0,1.591]
[1727941678252,1.6219,2376.3,2375.4,5.84066835]
[1727941678488,1.6219,2376.3,2375.5,0.71635309]
[1727941678489,3.36708,2376.0,2375.5,0.71635309]
[1727941678692,3.36715,2375.9,2375.5,0.71635309]
[1727941678919,3.36708,2376.0,2375.5,0.71635309]
[1727941679236,3.36708,2376.0,2375.4,4.95876]
[1727941679237,3.36738,2375.8,2375.4,1.591]
[1727941679591,3.36743,2375.7,2375.2,4.24993835]
[1727941679937,3.36738,2375.8,2375.3,0.71638009]
[1727941680144,3.36757,2375.6,2375.2,0.88190835]
[1727941680292,3.36737,2375.8,2375.2,0.88190835]
[1727941680598,3.36767,2375.6,2375.2,0.88190835]
[1727941680802,3.36738,2375.8,2375.2,0.88190835]
[1727941681025,3.36738,2375.8,2375.3,4.08436609]
[1727941681235,6.73477,2375.8,2375.3,4.08436609]
[1727941682103,3.36764,2375.6,2375.1,1.591]
[1727941682311,3.36764,2375.6,2375.1,4.95925]
[1727941682508,3.36743,2375.7,2375.1,4.95925]
[1727941683145,3.36743,2375.7,2375.2,3.36813]
[1727941683324,3.36743,2375.7,2375.2,3.36804]
[1727941683548,3.0,2376.0,2375.5,1.6049]
[1727941683549,6.36701,2376.0,2375.5,1.6049]
[1727941683907,3.36753,2375.7,2375.2,4.97292]
[1727941684247,3.36773,2375.5,2375.2,1.6049]
[1727941684415,3.36773,2375.5,2375.0,3.36831]
[1727941684616,3.36773,2375.5,2375.1,0.61612511]
[1727941685043,3.36766,2375.6,2375.1,3.98431511]
[1727941685941,3.36766,2375.6,2375.1,0.61612511]
[1727941686241,3.36766,2375.6,2375.1,3.98437511]
[1727941686608,6.36769,2375.6,2375.0,4.96002]
[1727941687138,3.0,2375.4,2375.0,4.96002]
[1727941687340,3.36769,2375.6,2375.0,4.95993]
[1727941687503,3.36769,2375.6,2375.1,0.495993]
[1727941687708,3.0,2375.7,2375.2,6.73617]
[1727941688018,3.0,2375.7,2375.3,3.36796]
[1727941688231,3.0,2375.7,2375.2,3.36805]
[1727941688431,3.0,2375.7,2375.2,4.52974141]
[1727941688605,3.36737,2375.8,2375.4,1.6255]
[1727941689107,6.73479,2375.8,2375.4,1.6255]
[1727941689308,3.36737,2375.8,2375.4,1.6255]
[1727941689502,9.73422,2376.0,2375.4,4.99333]
[1727941689715,3.36718,2375.9,2375.4,5.60885414]
[1727941689930,3.36728,2375.8,2375.4,5.60885414]
[1727941690547,3.36728,2375.8,2375.4,2.24102414]
[1727941691421,9.73418,2376.0,2375.4,2.24102414]
[1727941691947,3.36715,2375.9,2375.4,5.60885414]
[1727941692126,6.36708,2376.0,2375.5,0.56088541]
[1727941692656,3.3673,2375.8,2375.4,2.24102414]
[1727941692858,3.3673,2375.8,2375.4,1.6255]
[1727941693730,3.36743,2375.7,2375.4,1.6255]
[1727941694045,6.73468,2375.8,2375.4,1.6255]
[1727941695316,3.36743,2375.7,2375.4,1.6255]
[1727941696063,3.3673,2375.8,2375.4,2.124854]
[1727941696422,6.3671,2376.0,2375.4,5.492704]
[1727941696423,9.73424,2376.0,2375.4,5.492704]
[1727941696626,3.36719,2375.9,2375.4,5.492704]
[1727941697218,6.73446,2375.9,2375.4,5.492704]
[1727941697622,3.36719,2375.9,2375.4,5.492704]
[1727941697969,3.36728,2375.8,2375.4,2.124854]
[1727941698266,3.36719,2375.9,2375.4,2.124854]
[1727941698428,6.73444,2375.9,2375.4,2.124854]
[1727941699061,3.36719,2375.9,2375.4,2.124854]
[1727941699239,3.36731,2375.8,2375.4,2.124854]
[1727941699436,3.36719,2375.9,2375.5,0.5492734]
[1727941699643,3.36719,2375.9,2375.4,5.492684]
[1727941699854,6.7344,2375.9,2375.4,5.492684]
[1727941700182,3.36731,2375.8,2375.4,5.492684]
[1727941700341,3.36719,2375.9,2375.4,5.492634]
[1727941700865,3.36719,2375.9,2375.5,3.36771]
[1727941701102,3.0,2376.0,2375.6,0.8860344]
[1727941701367,3.36722,2375.9,2375.4,5.492634]
[1727941701527,6.7345,2375.9,2375.4,5.492634]
[1727941701723,3.36722,2375.9,2375.4,1.6255]
[1727941701960,3.36763,2375.6,2375.2,1.5537]
[1727941702174,3.36773,2375.5,2375.2,1.5537]
[1727941702344,3.36742,2375.8,2375.3,0.492196]
[1727941702637,6.73482,2375.8,2375.3,0.492196]
[1727941702843,3.36745,2375.7,2375.3,0.492196]
[1727941704062,3.3674,2375.8,2375.3,0.492196]
[1727941704237,6.73481,2375.8,2375.3,3.860176]
[1727941704443,3.3675,2375.7,2375.4,0.5413876]
[1727941704642,3.36763,2375.6,2375.3,0.492196]
[1727941705143,3.36738,2375.8,2375.3,3.860176]
[1727941705347,3.36738,2375.8,2375.4,1.5358]
[1727941705567,3.3671,2376.0,2375.5,3.9071916]
[1727941705868,3.36694,2376.1,2375.6,4.90335]
[1727941706362,3.36701,2376.0,2375.6,1.5358]
[1727941706565,3.36729,2375.8,2375.6,1.5358]
[1727941707727,3.36715,2375.9,2375.6,1.5358]
[1727941708551,5.025,2376.3,2375.6,1.5358]
[1727941708741,3.36737,2375.8,2375.6,1.5358]
[1727941708945,6.73475,2375.8,2375.6,1.5358]
[1727941709266,3.36737,2375.8,2375.6,1.5358]
[1727941709847,3.36737,2375.8,2375.4,1.5797]
[1727941710069,6.73479,2375.8,2375.4,1.5797]
[1727941710364,3.36737,2375.8,2375.4,1.5797]
[1727941710565,3.36737,2375.8,2375.4,2.074461]
[1727941713034,3.36743,2375.7,2375.4,2.074461]
[1727941713235,3.36673,2376.2,2375.4,2.074461]
[1727941713236,3.36711,2376.0,2375.4,1.5797]
[1727941713440,3.0,2376.1,2375.7,3.36742]
[1727941713756,3.0,2376.1,2375.5,4.97348]
[1727941713935,3.36701,2376.0,2375.6,0.43988411]
[1727941714271,6.36687,2376.1,2375.6,3.80742411]
[1727941714659,3.0,2376.1,2375.6,0.43988411]
[1727941714850,3.36701,2376.0,2375.6,0.43988411]
[1727941715052,6.73364,2376.2,2375.7,0.87809841]
[1727941715270,3.36689,2376.1,2375.7,0.87809841]
[1727941715683,3.36679,2376.2,2375.7,0.87809841]
[1727941715862,1.5578,2376.3,2375.7,0.87809841]
[1727941716223,3.3672,2375.9,2375.5,1.6059]
[1727941716333,3.36737,2375.8,2375.5,1.6059]
[1727941716771,3.36757,2375.6,2375.2,1.5257]
[1727941716934,3.36773,2375.5,2375.2,1.5257]
[1727941717334,3.36757,2375.6,2375.2,1.5257]
[1727941717780,6.73526,2375.6,2375.2,1.5257]
[1727941717952,3.36757,2375.6,2375.2,1.5257]
[1727941718473,3.36786,2375.4,2375.2,1.5257]
[1727941720010,3.36789,2375.4,2375.2,1.5257]
[1727941720149,3.36799,2375.3,2374.8,4.99879]
[1727941720337,3.36799,2375.3,2374.9,0.836758]
[1727941720938,3.36814,2375.2,2374.9,0.836758]
[1727941721175,1.6465,2375.4,2374.8,1.6301]
[1727941721691,3.36821,2375.2,2374.8,1.6301]
[1727941722252,3.36799,2375.3,2374.8,1.6301]
[1727941722442,3.36818,2375.2,2374.8,1.6301]
[1727941723387,3.36828,2375.1,2374.8,1.6301]
[1727941723680,3.36843,2375.0,2374.6,1.5343]
[1727941723984,6.36822,2375.2,2374.6,1.5343]
[1727941724281,3.0,2375.0,2374.6,1.5343]
[1727941724679,3.0,2375.0,2374.6,4.90327]
[1727941724853,3.0,2375.0,2374.6,2.64460534]
[1727941725035,3.37765788,2375.4,2374.8,3.36864]
[1727941725237,3.37765788,2375.4,2375.0,3.36837]
[1727941725238,1.73115788,2375.4,2375.0,3.36837]
[1727941725479,3.36775,2375.5,2375.0,3.36837]
[1727941726374,5.09872788,2375.6,2375.1,3.36827]
[1727941726584,3.0,2375.5,2375.1,3.36827]
[1727941727079,3.36772,2375.5,2375.1,3.36827]
[1727941727433,6.36765,2375.6,2375.1,3.36827]
[1727941728080,6.36765,2375.6,2375.1,4.200012]
[1727941728237,3.36774,2375.5,2375.1,4.200012]
[1727941728433,6.36765,2375.6,2375.1,4.200012]
[1727941728678,6.68104788,2375.8,2375.1,4.199912]
[1727941728879,1.73115788,2375.8,2375.4,3.36771]
[1727941729091,2.17708238,2375.9,2375.7,1.6121]
[1727941729092,1.73115788,2375.9,2375.7,1.6121]
[1727941729383,1.73115788,2376.1,2376.0,1.6348]
[1727941729880,2.17759086,2376.2,2376.0,1.6348]
[1727941729881,1.73115788,2376.2,2376.0,1.6348]
[1727941730039,1.73115788,2376.1,2375.8,1.5933]
[1727941730939,5.09801788,2376.1,2375.8,1.5933]
[1727941731679,3.36701,2376.0,2375.8,1.5933]
[1727941731855,3.3672,2375.9,2375.5,1.5421]
[1727941732052,3.36701,2376.0,2375.5,1.5421]
[1727941732053,3.36729,2375.8,2375.5,1.5421]
[1727941732254,3.36729,2375.8,2375.3,1.6189]
[1727941732452,3.36751,2375.7,2375.3,1.6189]
[1727941732853,3.36729,2375.8,2375.3,4.98689]
[1727941733072,3.36729,2375.8,2375.3,1.6189]
[1727941733484,3.36754,2375.7,2375.3,1.6189]
[1727941733654,3.36758,2375.6,2375.3,1.6189]
[1727941734194,4.91568,2375.6,2375.0,1.6358]
[1727941734343,8.28334,2375.6,2375.0,5.5925355]
[1727941734776,3.36771,2375.5,2375.0,5.5925355]
[1727941734939,4.91568,2375.6,2375.1,3.36827]
[1727941735143,3.36778,2375.5,2375.0,5.5925155]
[1727941735366,3.36796,2375.4,2375.0,1.6358]
[1727941737093,6.73589,2375.4,2375.0,1.6358]
[1727941737245,3.36793,2375.4,2375.0,1.6358]
[1727941737954,3.0,2375.7,2375.2,2.7929411]
[1727941738289,3.0,2375.7,2375.2,6.7361]
[1727941738580,3.0,2375.7,2375.2,7.84918411]
[1727941738823,3.0,2375.7,2375.2,4.48112411]
[1727941738992,6.36746,2375.7,2375.2,4.48112411]
[1727941739692,3.0,2375.7,2375.2,4.48112411]
[1727941739987,6.36748,2375.7,2375.2,4.48112411]
[1727941740391,3.0,2375.7,2375.4,1.5208]
[1727941740803,3.36737,2375.8,2375.4,1.5208]
[1727941741097,3.36757,2375.6,2375.4,1.5208]
[1727941741254,3.36757,2375.6,2375.0,9.5295511]
[1727941741255,3.36774,2375.5,2375.1,1.5485]
[1727941741451,3.36799,2375.4,2375.1,1.5485]
[1727941741689,3.36801,2375.3,2375.1,1.5485]
[1727941742067,3.36813,2375.2,2375.1,1.5485]
[1727941742270,4.99591,2375.3,2374.8,1.645]
[1727941742473,4.99591,2375.3,2374.6,4.68849743]
[1727941742474,3.36867,2374.9,2374.6,1.645]
[1727941742660,3.36884,2374.7,2374.4,2.52474495]
[1727941742859,3.36864,2374.9,2374.4,1.645]
[1727941743201,3.36864,2374.9,2374.4,3.59503779]
[1727941743386,3.36886,2374.7,2374.4,1.645]
[1727941743961,3.36913,2374.5,2374.3,0.87974495]
[1727941744190,3.36898,2374.6,2374.2,2.55943095]
[1727941744367,3.0,2374.6,2374.2,2.55943095]
[1727941744564,3.0,2374.6,2374.2,3.46025878]
[1727941744961,3.0,2374.6,2374.2,6.82979878]
[1727941745703,3.0,2374.6,2374.2,6.82972878]
[1727941746349,3.0,2374.6,2374.2,5.94998383]
[1727941746998,3.0,2374.6,2374.2,2.58051383]
[1727941747307,3.36913,2374.5,2374.2,2.58051383]
[1727941747679,3.0,2374.6,2374.3,0.34602588]
[1727941748195,3.36856,2374.9,2374.4,1.6183]
[1727941748500,3.36854,2375.0,2374.4,4.98754]
[1727941748816,6.7371,2375.0,2374.5,3.36912]
[1727941748978,6.73705,2375.0,2374.6,0.498742]
[1727941749180,3.36851,2375.0,2374.6,0.498742]
[1727941749411,3.36803,2375.3,2374.9,2.7929411]
[1727941749565,10.75793,2375.4,2374.7,7.7576011]
[1727941749767,3.36828,2375.1,2374.7,1.5959]
[1727941750088,3.36858,2374.9,2374.7,1.5959]
[1727941750284,3.36828,2375.1,2374.7,1.5959]
[1727941750597,3.36808,2375.3,2374.7,6.1617011]
[1727941750794,3.36808,2375.3,2374.8,5.53932011]
[1727941750994,3.36779,2375.5,2374.9,5.01277]
[1727941751194,3.36779,2375.5,2374.9,11.1741511]
[1727941751420,3.36779,2375.5,2374.9,7.8056811]
[1727941751623,3.36802,2375.3,2375.0,0.84218512]
[1727941751833,3.36759,2375.6,2375.1,3.36825]
[1727941752126,7.39,2375.8,2375.2,1.5886]
[1727941752285,7.39,2375.8,2375.1,2.7929411]
[1727941752286,3.36729,2375.8,2375.4,1.5736]